bitfinex/quotes_SOLUSD_20240625
["timestamp","ask_amount","ask_price","bid_price","bid_amount"]
[1719324148419,7.2803,137.36,137.3,7.2832]
[1719324148601,18.1981,137.38,137.28,15.5146]
[1719324148805,7.282,137.33,137.28,15.5146]
[1719324149127,18.2007,137.36,137.26,25.6684]
[1719324149420,7.2829,137.31,137.26,18.383]
[1719324149595,7.285,137.27,137.24,16.4559]
[1719324149796,18.2069,137.31,137.21,7.2879]
[1719324149797,7.2855,137.26,137.21,7.2879]
[1719324149999,7.2863,137.25,137.2,15.3229]
[1719324150415,18.2103,137.29,137.21,7.288]
[1719324150724,7.2858,137.26,137.2,22.6114]
[1719324151094,7.286,137.25,137.2,22.6114]
[1719324151305,18.2103,137.29,137.21,1.45529412]
[1719324151306,7.2855,137.26,137.21,1.45529412]
[1719324151512,7.2851,137.27,137.21,8.74319412]
[1719324151820,7.2829,137.31,137.25,7.2858]
[1719324152009,31.3,137.34,137.22,0.34]
[1719324152010,7.2823,137.32,137.27,7.2848]
[1719324152406,7.2829,137.31,137.26,7.2853]
[1719324152844,18.2049,137.33,137.22,18.3882]
[1719324153125,7.284,137.29,137.22,18.3882]
[1719324153500,7.284,137.29,137.24,7.2863]
[1719324153703,7.2834,137.3,137.24,7.2863]
[1719324154327,7.2839,137.29,137.24,25.5019]
[1719324154819,18.2049,137.33,137.24,18.2156]
[1719324155030,7.284,137.29,137.24,25.502]
[1719324155602,7.2835,137.3,137.24,25.502]
[1719324155921,31.3,137.34,137.22,0.17]
[1719324155922,7.283,137.31,137.26,25.4984]
[1719324156092,7.2836,137.3,137.23,54.8219]
[1719324156295,7.2836,137.3,137.25,7.2855]
[1719324157540,49.5034,137.34,137.25,7.2855]
[1719324157541,7.2829,137.31,137.25,25.5001]
[1719324157839,7.2824,137.32,137.26,0.17]
[1719324158021,7.2824,137.32,137.26,0.34]
[1719324158219,7.2828,137.31,137.26,7.2853]
[1719324159133,7.2834,137.3,137.25,25.5002]
[1719324159504,18.21,137.29,137.2,15.3229]
[1719324159815,18.21,137.29,137.2,22.6113]
[1719324160132,7.2854,137.26,137.21,7.288]
[1719324160539,0.34,137.3,137.21,18.2197]
[1719324160833,100.0,137.33,137.21,18.2197]
[1719324160834,7.2854,137.26,137.21,18.2197]
[1719324161018,7.286,137.25,137.2,22.6113]
[1719324163119,18.2066,137.32,137.2,15.3229]
[1719324163422,7.2843,137.28,137.23,25.5035]
[1719324163628,7.284,137.29,137.24,7.2864]
[1719324164545,7.286,137.25,137.2,40.8317]
[1719324164928,7.2854,137.26,137.21,7.2879]
[1719324165150,18.2051,137.33,137.22,18.3882]
[1719324165348,7.2845,137.28,137.23,7.2867]
[1719324165548,7.285,137.27,137.22,25.8456]
[1719324165753,156.7531,137.32,137.2,15.3229]
[1719324166052,18.21,137.29,137.2,15.3229]
[1719324166255,18.21,137.29,137.21,7.2877]
[1719324166256,7.2855,137.26,137.21,7.2877]
[1719324166622,7.286,137.25,137.2,22.6113]
[1719324167438,7.2867,137.24,137.2,15.3229]
[1719324168131,7.2861,137.25,137.2,22.6115]
[1719324168336,7.2867,137.24,137.2,15.3229]
[1719324168644,7.286,137.25,137.2,22.6114]
[1719324169454,7.2845,137.28,137.23,7.2869]
[1719324169752,7.2839,137.29,137.24,7.2863]
[1719324169958,7.2835,137.3,137.25,7.2859]
[1719324170249,138.2068,137.32,137.22,7.2874]
[1719324170459,7.2854,137.26,137.21,7.2876]
[1719324170759,20.0,137.32,137.22,18.2183]
[1719324170962,120.0,137.32,137.22,18.2183]
[1719324171145,18.5471,137.31,137.22,18.2183]
[1719324171656,0.17,137.31,137.24,18.216]
[1719324171835,20.0,137.33,137.24,18.216]
[1719324172035,0.34,137.32,137.24,18.216]
[1719324172255,7.2836,137.3,137.25,7.2859]
[1719324173061,7.2838,137.29,137.24,25.5023]
[1719324174269,7.2844,137.28,137.24,18.216]
[1719324174434,7.2844,137.28,137.23,7.2868]
[1719324174755,7.2855,137.26,137.21,25.5069]
[1719324174967,18.2084,137.3,137.2,15.3229]
[1719324174968,7.2866,137.24,137.2,15.3229]
[1719324175266,7.2861,137.25,137.2,22.6115]
[1719324177467,18.211,137.28,137.2,15.3229]
[1719324177644,7.2875,137.22,137.19,6.3599]
[1719324177850,7.2874,137.23,137.18,18.2232]
[1719324178057,7.2876,137.22,137.18,18.2232]
[1719324178547,7.2871,137.23,137.18,25.5128]
[1719324178867,7.2861,137.25,137.2,7.2881]
[1719324179035,7.2858,137.26,137.21,7.2877]
[1719324179250,7.2858,137.26,137.2,25.5096]
[1719324179563,7.2858,137.26,137.21,7.288]
[1719324179883,0.17,137.27,137.2,18.2212]
[1719324180474,0.34,137.27,137.2,18.2212]
[1719324180650,0.17,137.27,137.2,18.2212]
[1719324180859,7.285,137.27,137.22,7.2871]
[1719324181055,16.4899,137.31,137.18,36.4468]
[1719324181247,16.4899,137.31,137.24,18.216]
[1719324181588,7.2839,137.29,137.24,25.5024]
[1719324181949,34.697,137.31,137.21,18.2198]
[1719324182476,7.2865,137.24,137.19,7.6286]
[1719324182682,7.2856,137.26,137.2,18.2212]
[1719324182872,7.2856,137.26,137.21,7.2879]
[1719324183055,7.2859,137.25,137.2,25.5096]
[1719324183365,18.21,137.29,137.2,25.5098]
[1719324183685,7.2868,137.24,137.19,7.2889]
[1719324184092,7.2861,137.25,137.2,7.2886]
[1719324184780,100.34,137.28,137.21,18.2197]
[1719324184781,0.34,137.28,137.21,18.2197]
[1719324185090,7.2845,137.28,137.23,7.287]
[1719324185380,7.2837,137.3,137.25,7.2855]
[1719324185577,7.2839,137.29,137.24,7.2863]
[1719324185788,116.4899,137.31,137.22,6.4601]
[1719324185970,7.2865,137.24,137.2,18.2209]
[1719324186160,7.2865,137.24,137.19,7.2887]
[1719324186581,7.2861,137.25,137.2,7.2886]
[1719324187284,7.2872,137.23,137.19,18.2227]
[1719324187702,7.2867,137.24,137.19,25.5118]
[1719324187993,18.2128,137.27,137.19,18.2227]
[1719324188204,7.2861,137.25,137.2,7.2885]
[1719324188499,7.2861,137.25,137.21,7.288]
[1719324188868,7.2855,137.26,137.21,25.508]
[1719324189071,7.285,137.27,137.22,7.2875]
[1719324189301,18.2091,137.3,137.21,18.2201]
[1719324189602,7.286,137.25,137.21,18.2201]
[1719324189774,18.2091,137.3,137.21,18.2201]
[1719324189974,7.2852,137.27,137.22,7.2872]
[1719324190413,7.2854,137.26,137.21,25.5079]
[1719324190702,7.2849,137.27,137.22,7.2875]
[1719324191614,7.2881,137.21,137.18,6.5121]
[1719324191778,0.17,137.26,137.18,6.5121]
[1719324192096,7.2875,137.22,137.18,6.5121]
[1719324192303,7.2872,137.23,137.18,13.8017]
[1719324192481,0.17,137.27,137.19,18.2227]
[1719324192674,7.2861,137.25,137.2,7.2886]
[1719324193115,7.61980615,137.29,137.18,28.4121]
[1719324193402,7.2843,137.29,137.24,7.2864]
[1719324193608,7.285,137.27,137.23,34.7999]
[1719324194110,7.2845,137.28,137.23,42.0869]
[1719324194492,7.2865,137.24,137.2,34.1039]
[1719324194695,7.2865,137.24,137.2,15.8829]
[1719324194897,7.2855,137.26,137.2,15.8829]
[1719324195115,7.2855,137.26,137.21,25.5076]
[1719324195305,100.0,137.3,137.2,15.8829]
[1719324195693,7.2868,137.24,137.2,15.8829]
[1719324195894,18.5504,137.29,137.18,13.8017]
[1719324195895,7.2877,137.22,137.18,13.8017]
[1719324196103,7.2875,137.23,137.18,13.8017]
[1719324196704,7.2877,137.22,137.18,6.5121]
[1719324196894,7.2877,137.22,137.16,15.3632]
[1719324196895,7.2887,137.2,137.16,15.3632]
[1719324197701,7.2887,137.2,137.15,7.2911]
[1719324198795,7.2887,137.2,137.14,24.4093]
[1719324198796,7.2882,137.21,137.16,7.2907]
[1719324199418,7.2887,137.2,137.15,7.2911]
[1719324200426,7.2882,137.21,137.16,7.2907]
[1719324200723,118.2165,137.24,137.14,31.7006]
[1719324201018,0.34,137.23,137.14,31.7006]
[1719324201519,0.34,137.23,137.14,24.4093]
[1719324201957,7.2884,137.21,137.16,7.2907]
[1719324202115,0.17,137.2,137.14,25.5204]
[1719324202449,100.17,137.2,137.11,18.2329]
[1719324202616,7.2913,137.15,137.1,13.7477]
[1719324202948,0.17,137.19,137.09,16.4121]
[1719324202949,118.2245,137.18,137.09,16.4121]
[1719324203151,7.2924,137.13,137.09,16.4121]
[1719324204253,7.2929,137.12,137.08,18.2364]
[1719324204446,7.2934,137.11,137.07,6.1954]
[1719324204759,100.0,137.13,137.05,34.066]
[1719324204925,100.0,137.06,136.98,6.6262]
[1719324205254,100.0,137.06,136.99,18.2364]
[1719324205255,7.2972,137.04,136.99,18.2364]
[1719324205542,7.2972,137.04,136.98,6.6262]
[1719324205543,7.2979,137.03,136.98,6.6262]
[1719324205768,27.2943525,137.04,136.98,7.2999]
[1719324206048,27.2943525,137.04,136.99,7.2997]
[1719324206234,27.2943525,137.04,136.97,18.2518]
[1719324206235,41.05736323,137.04,136.97,18.2518]
[1719324206435,7.2993,137.0,136.95,6.564]
[1719324206634,20.20811772,137.0,136.95,13.8657]
[1719324206935,33.27567603,137.0,136.95,13.8657]
[1719324207243,27.2943525,136.99,136.95,6.564]
[1719324207451,13.06755831,137.0,136.97,7.3008]
[1719324207823,7.2981,137.03,136.97,7.3008]
[1719324208530,7.2981,137.03,136.96,18.2524]
[1719324208531,12.3535734,137.03,136.96,18.2524]
[1719324208749,7.2993,137.0,136.95,6.564]
[1719324208925,7.2993,137.0,136.95,13.8658]
[1719324209362,7.2988,137.01,136.95,13.8658]
[1719324209747,7.2994,137.0,136.95,13.8658]
[1719324209980,7.2998,136.99,136.95,6.564]
[1719324213276,25.48409327,136.99,136.92,7.2463785]
[1719324213481,13.13051987,136.98,136.92,7.2463785]
[1719324213655,7.3021,136.95,136.92,7.2463785]
[1719324214078,7.3015,136.96,136.92,7.2463785]
[1719324214252,13.77865535,136.96,136.92,0.8467785]
[1719324214451,14.47699564,136.95,136.92,0.8467785]
[1719324214877,21.77899564,136.95,136.92,0.8467785]
[1719324215573,20.43211987,136.96,136.92,0.8467785]
[1719324215884,7.3019,136.95,136.92,0.8467785]
[1719324216065,20.43201987,136.96,136.92,0.8467785]
[1719324216376,7.302,136.95,136.92,0.8467785]
[1719324216970,13.13051987,136.96,136.94,7.3024]
[1719324217172,14.47699564,136.98,136.93,7.3028]
[1719324218399,14.47699564,136.98,136.92,0.8467785]
[1719324218588,27.60751551,136.98,136.92,0.8467785]
[1719324218785,7.3017,136.96,136.92,0.8467785]
[1719324219874,7.3009,136.97,136.92,8.1501785]
[1719324220099,7.3029,136.94,136.92,0.8467785]
[1719324220394,27.60751551,136.96,136.92,0.8467785]
[1719324220597,7.3028,136.94,136.92,0.8467785]
[1719324220799,7.303,136.93,136.92,0.8467785]
[1719324221791,20.43351987,136.93,136.92,0.8467785]
[1719324222904,13.13051987,136.93,136.92,0.8467785]
[1719324223402,27.60751551,136.93,136.92,0.8467785]
[1719324224503,34.91051551,136.93,136.92,0.8467785]
[1719324225405,27.60751551,136.93,136.92,0.8467785]
[1719324229497,34.91051551,136.93,136.92,0.8467785]
[1719324230797,27.60751551,136.93,136.92,0.8467785]
[1719324231393,7.302,136.95,136.92,0.8467785]
[1719324231725,7.3023,136.95,136.92,0.8467785]
[1719324232020,20.43261987,136.95,136.92,0.8467785]
[1719324234113,7.3025,136.94,136.92,0.8467785]
[1719324235419,7.303,136.93,136.92,0.8467785]
[1719324240229,11.63958849,136.94,136.92,0.8467785]
[1719324240439,18.94248849,136.94,136.92,0.8467785]
[1719324240734,11.63958849,136.94,136.92,0.8467785]
[1719324240937,7.303,136.93,136.92,0.8467785]
[1719324241414,7.303,136.93,136.82,36.5418]
[1719324241415,7.3062,136.87,136.84,6.63500186]
[1719324241733,7.3058,136.88,136.84,6.63500186]
[1719324241935,7.3053,136.89,136.84,13.94270186]
[1719324242535,7.3058,136.88,136.84,6.63500186]
[1719324243064,7.3053,136.89,136.84,13.94270186]
[1719324243234,7.3057,136.88,136.84,13.94270186]
[1719324243425,7.3057,136.88,136.84,6.63500186]
[1719324244162,7.3053,136.89,136.84,13.94260186]
[1719324244732,18.2604,136.91,136.84,13.94260186]
[1719324244733,7.3057,136.88,136.84,6.63500186]
[1719324245540,7.3062,136.87,136.84,0.04330186]
[1719324245849,7.3069,136.86,136.84,0.04330186]
[1719324246224,7.3064,136.87,136.84,0.04330186]
[1719324246721,7.3058,136.88,136.84,0.04330186]
[1719324247860,20.03193487,136.92,136.84,25.61990186]
[1719324248020,7.3054,136.89,136.84,0.04330186]
[1719324248223,7.3054,136.89,136.84,1.79323451]
[1719324248425,7.3054,136.89,136.84,10.56034243]
[1719324248644,20.03193487,136.92,136.84,0.04330186]
[1719324248837,20.03193487,136.92,136.86,15.7206]
[1719324248838,14.92743722,136.92,136.86,15.7206]
[1719324249134,18.2558,136.95,136.87,18.2652]
[1719324249135,7.3042,136.91,136.87,18.2652]
[1719324249337,7.3036,136.92,136.88,2.18508391]
[1719324249662,18.2558,136.95,136.88,6.97477392]
[1719324249827,7.62561159,136.97,136.89,18.4323]
[1719324250021,11.18051987,136.98,136.89,18.4323]
[1719324250629,7.3019,136.95,136.91,7.3037]
[1719324250841,7.3025,136.94,136.89,25.7369]
[1719324251351,11.18051987,136.98,136.88,6.243]
[1719324251539,7.3041,136.91,136.86,41.2931]
[1719324251934,7.3042,136.91,136.86,41.2935]
[1719324252152,7.3037,136.92,136.87,7.3061]
[1719324252732,7.3041,136.91,136.86,41.2934]
[1719324252929,7.3036,136.92,136.87,7.306]
[1719324253155,11.18051987,136.94,136.86,15.7206]
[1719324253460,11.18051987,136.91,136.85,6.6253]
[1719324254157,18.48491987,136.91,136.86,7.3067]
[1719324254378,7.3047,136.9,136.85,13.9325]
[1719324254582,7.3051,136.89,136.85,6.6253]
[1719324254742,11.18051987,136.91,136.85,6.6253]
[1719324254944,18.2545,136.96,136.85,6.6253]
[1719324255170,7.3044,136.91,136.86,7.3066]
[1719324255464,11.52051987,136.95,136.87,10.22492057]
[1719324255465,7.3036,136.92,136.87,10.22492057]
[1719324255765,18.48241987,136.95,136.9,7.3042]
[1719324255971,11.18051987,136.95,136.91,7.3037]
[1719324256170,7.3015,136.96,136.91,7.3037]
[1719324256544,7.3022,136.95,136.9,18.2611]
[1719324256750,7.3026,136.94,136.9,18.2611]
[1719324257067,7.3025,136.94,136.89,15.9929]
[1719324257239,18.2524,136.97,136.89,15.9929]
[1719324257441,29.43291987,136.97,136.89,34.2554]
[1719324258167,11.18051987,136.96,136.89,34.2554]
[1719324258772,7.3026,136.94,136.89,41.5605]
[1719324259570,14.47523946,136.95,136.9,7.3045]
[1719324259572,21.77733946,136.95,136.9,7.3045]
[1719324260745,7.3025,136.94,136.89,41.5603]
[1719324261151,14.47523946,136.94,136.89,15.9929]
[1719324261658,14.47523946,136.94,136.91,7.304]
[1719324261967,100.0,137.02,136.89,15.9929]
[1719324261968,7.3007,136.98,136.93,7.303]
[1719324262156,26.48316058,137.03,136.92,6.279]
[1719324262157,7.2999,136.99,136.94,7.3023]
[1719324262352,7.2999,136.99,136.95,1.87778625]
[1719324262556,7.2999,136.99,136.94,7.3023]
[1719324262760,7.3003,136.98,136.93,7.3028]
[1719324262973,7.3009,136.97,136.92,32.0107]
[1719324263275,11.18051987,136.99,136.93,7.4728]
[1719324263276,7.3005,136.98,136.93,7.4728]
[1719324263846,11.18051987,136.99,136.94,7.302]
[1719324264068,18.48071987,136.99,136.94,7.302]
[1719324265276,7.301,136.97,136.93,0.17]
[1719324265448,7.3004,136.98,136.93,7.6429]
[1719324265650,7.3004,136.98,136.94,7.3024]
[1719324266667,7.3004,136.98,136.92,24.5374]
[1719324266867,19.97820914,136.99,136.95,7.3019]
[1719324267175,11.18051987,136.99,136.95,7.3019]
[1719324267376,7.2972,137.04,136.99,7.2997]
[1719324267676,11.18051987,137.03,136.99,7.2996]
[1719324267884,11.18051987,137.03,136.99,6.2089]
[1719324268174,11.18051987,137.03,137.0,25.5465]
[1719324268365,11.18051987,137.03,136.99,6.2089]
[1719324268672,7.2983,137.02,136.99,6.2089]
[1719324268985,7.3003,136.98,136.96,15.1375]
[1719324269269,24.20720183,137.01,136.96,15.1375]
[1719324269486,24.20720183,137.01,136.97,7.3008]
[1719324270477,11.18051987,137.01,136.98,7.2999]
[1719324270650,7.2977,137.03,136.99,0.94787721]
[1719324270851,18.47821987,137.03,136.98,7.2999]
[1719324271052,7.2982,137.02,136.97,7.3007]
[1719324271255,11.18051987,137.03,136.96,15.1375]
[1719324271482,7.2997,137.0,136.96,15.1375]
[1719324272357,7.2998,136.99,136.96,15.1375]
[1719324272566,20.32648196,136.99,136.95,6.2836]
[1719324273355,13.02668196,136.99,136.95,6.2836]
[1719324273552,11.18051987,137.0,136.95,24.5379]
[1719324273752,20.65636645,137.04,136.95,6.2836]
[1719324274092,13.02668196,137.03,136.95,6.2836]
[1719324274376,13.02668196,137.03,136.99,7.2995]
[1719324274668,31.50500183,137.03,136.98,25.5502]
[1719324274850,13.02668196,137.03,136.95,24.5379]
[1719324275056,11.18051987,137.02,136.98,7.3002]
[1719324275258,11.18051987,137.02,136.99,7.2997]
[1719324275449,11.18051987,137.02,136.99,18.2488]
[1719324275970,11.18051987,137.02,136.99,25.5482]
[1719324277375,11.18051987,137.02,136.99,18.2488]
[1719324277582,11.18051987,137.02,136.99,25.5481]
[1719324277761,11.18051987,137.02,137.0,7.2992]
[1719324277952,18.47661987,137.06,137.01,7.2983]
[1719324278154,13.02668196,137.05,136.99,18.2488]
[1719324278357,24.20720183,137.05,136.99,18.2488]
[1719324278581,31.50390183,137.05,137.0,7.2992]
[1719324278766,31.50390183,137.05,137.01,7.2983]
[1719324278767,24.20720183,137.05,137.01,7.2983]
[1719324278964,31.50380183,137.05,137.0,7.2991]
[1719324279261,291.8484,137.19,137.01,0.17]
[1719324279262,13.02668196,137.09,137.01,0.17]
[1719324279472,24.20720183,137.09,137.03,18.2438]
[1719324279765,7.2955,137.08,137.03,25.5412]
[1719324279987,18.47601987,137.08,137.03,25.5412]
[1719324280379,11.18051987,137.08,137.05,18.2407]
[1719324280569,13.02668196,137.09,137.05,18.2407]
[1719324280886,18.47371987,137.12,137.07,7.2955]
[1719324281249,24.20720183,137.12,137.08,7.2949]
[1719324281451,24.20720183,137.12,137.07,7.2953]
[1719324281676,31.50010183,137.12,137.07,7.2953]
[1719324281872,31.50010183,137.12,137.06,7.2959]
[1719324282175,24.20720183,137.11,137.04,0.34]
[1719324282385,7.2946,137.09,137.03,7.2975]
[1719324282672,24.20720183,137.11,137.05,7.2965]
[1719324282673,7.2941,137.1,137.05,7.2965]
[1719324282986,7.2945,137.09,137.04,7.297]
[1719324283154,7.2945,137.09,137.03,7.2972]
[1719324283478,20.32068196,137.1,137.04,7.6369]
[1719324283777,13.02668196,137.1,137.04,7.297]
[1719324284079,13.02668196,137.09,137.04,7.297]
[1719324284283,13.02668196,137.09,137.05,7.2965]
[1719324284497,13.02668196,137.09,137.06,7.296]
[1719324284684,7.2939,137.1,137.04,25.5391]
[1719324284995,13.02668196,137.1,137.05,7.2963]
[1719324285186,20.32078196,137.1,137.05,7.2963]
[1719324286266,29.06388304,137.16,137.06,18.4094]
[1719324286471,7.2927,137.13,137.07,7.2954]
[1719324287606,7.2927,137.13,137.08,7.2948]
[1719324287981,7.2927,137.13,137.07,7.2953]
[1719324288178,7.2929,137.12,137.07,7.2953]
[1719324288488,7.2934,137.11,137.06,18.2394]
[1719324288690,24.20720183,137.11,137.03,18.2434]
[1719324289011,20.32108196,137.1,137.03,7.2975]
[1719324289204,20.32108196,137.1,137.04,7.297]
[1719324289504,7.2944,137.09,137.04,7.297]
[1719324290089,7.2944,137.09,137.03,7.2975]
[1719324290287,20.32078196,137.1,137.04,7.297]
[1719324290485,7.2945,137.09,137.04,7.297]
[1719324290683,20.32078196,137.1,137.04,7.297]
[1719324291498,13.02668196,137.1,137.05,7.2964]
[1719324292004,13.02668196,137.1,137.06,7.296]
[1719324292592,7.293,137.12,137.06,7.2956]
[1719324292904,7.2935,137.11,137.05,7.2964]
[1719324293081,20.32018196,137.11,137.05,7.2964]
[1719324293285,7.2939,137.1,137.05,7.2964]
[1719324293892,20.32028196,137.11,137.05,7.2964]
[1719324294803,20.32028196,137.11,137.02,13.3979]
[1719324294804,7.2951,137.08,137.02,13.3979]
[1719324294979,7.2956,137.07,137.02,6.1001]
[1719324295590,7.2951,137.08,137.02,13.3982]
[1719324296111,7.2951,137.08,137.02,7.2981]
[1719324296479,7.2946,137.09,137.03,7.2976]
[1719324296679,13.02668196,137.11,137.04,7.2968]
[1719324296881,20.32038196,137.11,137.05,7.2965]
[1719324297377,20.32018196,137.11,137.05,25.5378]
[1719324298508,7.2946,137.09,137.04,0.17]
[1719324299515,7.294,137.1,137.04,7.467]
[1719324299813,20.32018196,137.11,137.05,7.2964]
[1719324300020,13.02668196,137.11,137.06,18.24]
[1719324300216,13.02668196,137.11,137.07,7.2952]
[1719324300515,10.06112295,137.14,137.08,18.2372]
[1719324300815,7.2902,137.17,137.11,7.2929]
[1719324301016,7.2902,137.17,137.1,25.5284]
[1719324301223,10.06112295,137.17,137.09,7.6342]
[1719324301516,10.06112295,137.17,137.1,7.2938]
[1719324301725,7.2907,137.16,137.1,7.2938]
[1719324302219,17.35142295,137.17,137.11,7.2933]
[1719324302720,17.35142295,137.17,137.1,7.2938]
[1719324302721,7.2908,137.16,137.1,7.2938]
[1719324302920,17.35152295,137.17,137.11,7.6333]
[1719324303143,17.35152295,137.17,137.11,7.4633]
[1719324303326,7.2908,137.16,137.1,7.4636]
[1719324303498,10.06112295,137.17,137.11,0.17]
[1719324303819,10.06112295,137.17,137.1,0.17]
[1719324303820,10.06112295,137.17,137.09,18.4058]
[1719324304015,21.78373537,137.17,137.09,18.4058]
[1719324304188,7.291,137.16,137.1,7.4635]
[1719324304389,21.78373537,137.17,137.1,0.17]
[1719324304390,7.2914,137.15,137.1,0.17]
[1719324304723,7.2918,137.14,137.09,0.17]
[1719324305093,7.2926,137.13,137.09,0.17]
[1719324305294,7.2926,137.13,137.06,34.1539]
[1719324305295,126.95,137.15,137.02,21.3992]
[1719324305531,7.295,137.08,137.02,21.3992]
[1719324305841,15.3853,137.1,137.0,18.2471]
[1719324305990,15.3853,137.1,137.0,25.5462]
[1719324305991,7.2957,137.07,137.0,25.5462]
[1719324306320,7.2966,137.05,136.99,7.2996]
[1719324306943,7.2973,137.04,136.97,46.9509]
[1719324307150,7.2973,137.04,136.97,39.6506]
[1719324307713,7.2967,137.05,136.98,7.3002]
[1719324308137,118.2366,137.09,136.97,39.6506]
[1719324308336,22.12373537,137.08,136.98,7.3001]
[1719324308526,29.07913537,137.08,137.01,7.2987]
[1719324308716,7.2967,137.05,136.99,18.2486]
[1719324308915,7.297,137.05,136.98,7.3002]
[1719324309712,7.2972,137.04,136.98,7.3002]
[1719324309908,7.2967,137.05,136.98,7.3002]
[1719324310217,7.2967,137.05,136.99,7.2997]
[1719324310835,40.02193537,137.08,136.97,21.3992]
[1719324311008,0.34,137.07,136.97,21.3992]
[1719324311336,0.34,137.07,136.95,7.3019]
[1719324311337,7.2987,137.01,136.95,7.3019]
[1719324311519,7.2987,137.01,136.94,29.2947]
[1719324311722,18.2434,137.04,136.93,18.2566]
[1719324311916,115.64122084,137.03,136.93,18.2566]
[1719324312118,115.64122084,137.03,136.91,22.2294]
[1719324312119,18.4161,137.02,136.91,22.2294]
[1719324312331,7.3012,136.97,136.91,7.3039]
[1719324312535,7.3023,136.95,136.88,29.6132]
[1719324312711,7.3015,136.96,136.89,7.3049]
[1719324313029,22.8457,136.98,136.9,7.3045]
[1719324313233,7.3009,136.97,136.9,7.3045]
[1719324313436,22.8457,136.98,136.9,7.304]
[1719324313831,7.3015,136.96,136.89,25.5668]
[1719324314043,7.3015,136.96,136.89,25.5669]
[1719324315338,7.301,136.97,136.9,7.3042]
[1719324315555,7.3015,136.96,136.9,7.3042]
[1719324315768,7.3015,136.96,136.89,25.5668]
[1719324316658,7.3021,136.95,136.89,25.5668]
[1719324316845,7.3015,136.96,136.9,7.3043]
[1719324317253,7.3015,136.96,136.89,18.2619]
[1719324317650,7.3015,136.96,136.89,25.5668]
[1719324317863,0.17,136.97,136.84,16.03810186]
[1719324318047,22.12373537,136.97,136.85,20.0]
[1719324318443,7.302,136.95,136.85,20.0]
[1719324318641,21.95373537,136.97,136.87,18.2642]
[1719324318856,21.78373537,136.97,136.88,7.3055]
[1719324319741,7.3024,136.94,136.88,7.3055]
[1719324319939,7.302,136.95,136.88,7.3055]
[1719324320138,7.3015,136.96,136.89,7.3049]
[1719324320375,7.3019,136.95,136.89,7.3049]
[1719324320740,11.72261242,136.96,136.88,7.3055]
[1719324320960,7.3035,136.93,136.87,18.6042]
[1719324321167,7.3035,136.92,136.86,7.3063]
[1719324321667,7.303,136.93,136.86,7.3063]
[1719324322249,7.303,136.93,136.87,7.306]
[1719324322567,7.3024,136.94,136.87,7.306]
[1719324322735,19.02501242,136.94,136.87,7.306]
[1719324323561,11.72261242,136.94,136.88,18.2634]
[1719324324065,19.02511242,136.94,136.88,25.5688]
[1719324324266,19.02511242,136.94,136.88,18.2634]
[1719324325065,10.06112295,136.95,136.88,18.2634]
[1719324325366,0.17,136.97,136.88,18.2634]
[1719324325566,7.3015,136.96,136.88,18.2634]
[1719324325762,7.3015,136.96,136.89,0.34]
[1719324326240,7.301,136.97,136.89,0.34]
[1719324326440,11.72261242,136.98,136.91,15.4013]
[1719324326862,19.02331242,136.98,136.91,15.4013]
[1719324327061,11.72261242,136.98,136.91,15.4013]
[1719324327574,7.3012,136.97,136.91,15.4013]
[1719324327747,11.72261242,136.98,136.91,15.4013]
[1719324328073,9.50121982,137.01,136.91,15.4013]
[1719324328250,16.80031982,137.01,136.93,18.2572]
[1719324328447,7.2994,137.0,136.93,25.5597]
[1719324328651,9.50121982,137.01,136.96,7.3013]
[1719324328964,6.2462,137.05,136.96,7.3012]